Cogmind - Beta 14 @@@ ROGUE MODE // 2024.10.03 @ 14:06:06 Player: Corvi Result: Destroyed by 0J-84N(R) with Subdweller Machine Gun Performance ------------- Evolutions (0) 0 Regions Visited (2) 400 Robots Destroyed (27) 135 Value Destroyed (572) 572 Prototype IDs (0) 0 Alien Tech Used (0) 0 Bonus (0) 0 TOTAL SCORE: 1107 Bonus ------- None Cogmind --------- Core Integrity 0/250 Matter 300/300 Energy 200/200 System Corruption 0% Temperature Cool (0) Movement Walking (120) Location -10/Subcaves Parts ------- > --- POWER (1) -------- Subdweller Power Source > --- PROPULSION (2) --- Aluminum Leg Aluminum Leg > --- UTILITY (2) ------ Small Storage Unit Targeting Computer > --- WEAPON (2) ------- Particle Gun > --- INVENTORY (8) ---- Light Ion Engine Improved Terrain Scanner Light Armor Plating Particle Gun Battle Rifle Multitool Peak State ------------ > --- POWER ------------ Subdweller Power Source > --- PROPULSION ------- Light Treads Spiked Treads > --- UTILITY ---------- Small Storage Unit Targeting Computer > --- WEAPON ----------- Particle Gun Particle Gun > --- INVENTORY -------- Light Ion Engine Aluminum Leg Aluminum Leg Improved Terrain Scanner Light Armor Plating Particle Gun Mining Laser [Rating: 12] Favorites ----------- Power Light Ion Engine Engine Light Ion Engine Propulsion Light Treads Treads Light Treads Leg Aluminum Leg Utility Small Storage Unit Device Seismic Detector Storage Small Storage Unit Processor Targeting Computer Protection Light Armor Plating Weapon Particle Gun Energy Gun Particle Gun Ballistic Gun Assault Rifle Ballistic Cannon Light Cannon Special Weapon Mining Laser Build | -11 -10 -10 ------- Run | Yrd Mat Sub Slots Evolved . | . . . Power . | . . . Propulsion . | . . . Utility . | . . . Weapon . | . . . Parts Attached 30 | 8 8 14 Power 6 | 1 2 3 Engine 6 | 1 2 3 Core . | . . . Reactor . | . . . Propulsion 6 | 2 . 4 Treads 4 | 2 . 2 Leg 2 | . . 2 Wheel . | . . . Hover . | . . . Flight . | . . . Utility 4 | 2 2 . Device 1 | 1 . . Storage 1 | 1 . . Processor 1 | . 1 . Hackware . | . . . Protection 1 | . 1 . Artifact . | . . . Weapon 14 | 3 4 7 Energy Gun 8 | 2 2 4 Energy Cannon . | . . . Ballistic Gun 2 | 1 . 1 Ballistic Cannon 1 | . 1 . Launcher . | . . . Special Weapon 3 | . 1 2 Impact Weapon . | . . . Slashing Weapon . | . . . Piercing Weapon . | . . . Special Melee Weapon . | . . . Unidentified Prototypes . | . . . Parts Lost 4 | . 1 3 Power 1 | . 1 . Propulsion 2 | . . 2 Utility . | . . . Weapon 1 | . . 1 Highest Loss Streak 2 | . 1 2 To Critical Strikes 1 | . . 1 Average Slot Usage (%) 98 | . 97 99 Engine 13 | . 13 14 Treads 27 | . 28 27 Storage 14 | . 14 14 Processor 13 | . 11 14 Energy Gun 11 | . 1 17 Ballistic Gun 5 | . 12 . Ballistic Cannon 3 | . 10 . Special Weapon 6 | . . 10 Peak Build Rating 12 | 6 10 12 Average Rating 8 | 4 7 10 On Entrance 5 | . 6 9 Naked Turns . | . . . Heaviest Build 16 | 11 16 16 Greatest Support 40 | 40 40 40 Greatest Overweight (x) 3 | 3 . . Average Overweight (x) . | . . . Largest Inventory Capacity 8 | 8 8 8 Average Capacity 7 | 7 8 8 Most Carried 8 | 3 8 8 Average Carried 6 | 2 6 7 Final Capacity 8 | 8 8 8 Final Carried 8 | 3 8 6 Class Distribution -------------------- 100% | Mutant Dominant Class ---------------- Mutant | -10/Materials Mutant | -10/Subcaves Resources | -11 -10 -10 ----------- Run | Yrd Mat Sub Matter Collected 804 | 199 397 208 Remotely . | . . . Salvage Created 766 | 123 412 231 Parts 53 | 6 33 14 Haulers Intercepted 2 | . 2 . Recyclers Shooed 1 | 1 . . Parts Field Recycled . | . . . Retrieved Matter . | . . . Parts Self-Destructed 8 | . . 8 Prevented . | . . . Kills | -11 -10 -10 ------- Run | Yrd Mat Sub Combat Hostiles Destroyed 18 | . 10 8 Guns 13 | . 5 8 Cannons 5 | . 5 . Classes Destroyed 8 | 3 4 1 Worker 2 | 1 1 . Tunneler 2 | 1 1 . Hauler 2 | . 2 . Recycler 1 | 1 . . Watcher 2 | . 2 . Swarmer 7 | . 3 4 Grunt 7 | . 7 . Subdweller 4 | . . 4 Best Kill Streak 4 | 3 4 4 Combat Bots Only 4 | . 3 4 Max Kills in Single Turn 2 | 1 2 1 Gunslinging . | . . . Exploded . | . . . Melee . | . . . Uniques/NPCs Destroyed . | . . . Combat | -11 -10 -10 -------- Run | Yrd Mat Sub Hostile Shots Fired 104 | . 58 46 Missed 25 | . 15 10 Damage Taken 1195 | . 464 731 Core 252 | . 113 139 Absorbed by Shields . | . . . Core Remaining (%) 100 | 100 . . Volleys Fired 102 | 11 41 50 Largest 2 | 1 2 2 Hottest 165 | 20 100 165 Shots Fired 168 | 11 79 78 Gun 104 | 11 38 55 Cannon 38 | . 38 . Launcher . | . . . Special 26 | . 3 23 Kinetic 97 | 11 76 10 Thermal 71 | . 3 68 Explosive . | . . . Electromagnetic . | . . . Robot Hit Streak 18 | 3 9 18 Robot Miss Streak 5 | 2 3 5 Penetration Max . | . . . Secondary Targets 1 | . . 1 Max Gunslinging Chain 1 | . . 1 Shots Hit Robots 101 | 7 52 42 Core Hits 42 | 4 26 12 Critical Kills . | . . . Critical Parts Destroyed . | . . . Critical Strikes 1 | . 1 . Blast 1 | . 1 . Melee Attacks . | . . . Impact . | . . . Slashing . | . . . Piercing . | . . . Sneak Attacks . | . . . Combat Hostiles . | . . . Follow-up Attacks . | . . . Damage Inflicted 1596 | 110 850 636 Guns 1124 | 110 402 612 Cannons 446 | . 446 . Explosions . | . . . Melee . | . . . Ramming 2 | . 2 . Kinetic 1050 | 110 848 92 Thermal 544 | . . 544 Explosive . | . . . Electromagnetic . | . . . Impact . | . . . Slashing . | . . . Piercing . | . . . Highest Corruption . | . . . Average Corruption . | . . . Corruption Purged . | . . . Corruption Blocked . | . . . Overload Shots . | . . . Overflow Damage . | . . . Projectiles . | . . . Explosions . | . . . Melee . | . . . Knockbacks 4 | . 4 . Impact . | . . . Kinetic 4 | . 4 . Secondary . | . . . Self-Inflicted Damage . | . . . Shots . | . . . Rammed 1 | . 1 . Targets Rammed 1 | . 1 . Kicked . | . . . Crushed . | . . . Highest Temperature 108 | . 60 108 Average Temperature 25 | . 19 30 Received Heat Transfer 324 | . 180 144 Siege Activations . | . . . Robots Corrupted . | . . . Combat Hostiles . | . . . Parts Fried . | . . . Impact Corruptions . | . . . Robots Melted . | . . . Combat Hostiles . | . . . Parts Melted 2 | . . 2 Heat Transferred 1271 | . . 1271 Parts Sabotaged . | . . . Parts Stolen . | . . . Parts Stripped . | . . . Power Chain Reactions . | . . . Alert | -11 -10 -10 ------- Run | Yrd Mat Sub Peak Influence 251 | 15 251 . Initial 9 | . 9 . Average 83 | 1 108 . Maximum Alert Level 1 | . 1 . Low Security (%) 92 | 100 89 . Level 1 7 | . 10 . Level 2 . | . . . Level 3 . | . . . Level 4 . | . . . Level 5 . | . . . High Security . | . . . Max Security . | . . . Squads Dispatched 1 | . 1 . Investigation 1 | . 1 . Extermination . | . . . Reinforcement . | . . . Assault . | . . . Garrison . | . . . Intercept . | . . . Searches Triggered . | . . . Construction Impeded . | . . . Haulers Reinforced . | . . . Active Scanning Responses . | . . . Cargo Convoy Interrupts . | . . . Stealth | -11 -10 -10 --------- Run | Yrd Mat Sub Distress Signals 2 | . 2 . Communications Jammed . | . . . Distress Signals . | . . . Times Spotted 26 | . 13 13 Peak Tracking Total 6 | . 4 6 Tactical Retreats 4 | . 1 3 Traps | -11 -10 -10 ------- Run | Yrd Mat Sub Traps Triggered 3 | . . 3 Indirectly . | . . . Trap Hack Attempts . | . . . Triggered . | . . . Disarmed . | . . . Reprogrammed . | . . . Reused . | . . . Traps Extracted . | . . . Installed . | . . . Triggered . | . . . Machines | -11 -10 -10 ---------- Run | Yrd Mat Sub Machines Disabled 2 | . 2 . Max in Single Turn 1 | . 1 . Machines Repaired . | . . . Machines Dismantled . | . . . Machines Sabotaged . | . . . Overloaded Fab Kills . | . . . Hacking | -11 -10 -10 --------- Run | Yrd Mat Sub Machines Accessed 6 | . 5 1 Terminals 4 | . 4 . Fabricators . | . . . Repair Stations . | . . . Recycling Units 1 | . 1 . Scanalyzers . | . . . Garrison Access . | . . . Total Hacks 14 | . 9 5 Successful 10 | . 5 5 Failed 4 | . 4 . Catastrophic 3 | . 3 . Database Lockouts . | . . . Manual 6 | . 6 . Terminals 6 | . 6 . Fabricators . | . . . Repair Stations . | . . . Recycling Units 3 | . 3 . Scanalyzers . | . . . Garrison Access . | . . . Terminal Hacks 6 | . 1 5 Record 5 | . . 5 Branch Access Points 1 | . 1 . Fabricator Hacks . | . . . Repair Station Hacks . | . . . Recycling Unit Hacks 3 | . 3 . Report Inventory 1 | . 1 . Retrieve Matter 2 | . 2 . Scanalyzer . | . . . Garrison Access Hacks . | . . . Unauthorized Hacks 1 | . 1 . Terminals 1 | . 1 . Botnet 1 | . 1 . Fabricators . | . . . Repair Stations . | . . . Recycling Units . | . . . Scanalyzers . | . . . Garrison Access . | . . . Data Cores Recovered . | . . . Used . | . . . Hacking Detections 5 | . 5 . Full Trace Events 1 | . 1 . Feedback Events . | . . . Feedback Blocked . | . . . Robot Schematics Acquired . | . . . Robots Built . | . . . Authchips . | . . . Time . | . . . Total Robot Build Rating . | . . . Part Schematics Acquired . | . . . Parts Built . | . . . Authchips . | . . . Time . | . . . Total Part Build Rating . | . . . Parts Repaired . | . . . Time . | . . . Parts Recycled . | . . . Recycled Matter . | . . . Retrieved Matter . | . . . Retrieved Components . | . . . Parts Scanalyzed . | . . . Part Schematics Acquired . | . . . Parts Damaged . | . . . Bothacking | -11 -10 -10 ------------ Run | Yrd Mat Sub Used RIF Installer . | . . . Robots Hacked . | . . . Non-combat . | . . . Combat . | . . . Robot Hacks Applied . | . . . Relay Couplers Released . | . . . Fabnet Peak Effective % . | . . . Robots Rewired . | . . . Allies Hacked . | . . . Hacks Repelled . | . . . Allies | -11 -10 -10 -------- Run | Yrd Mat Sub Total Allies . | . . . Largest Group . | . . . Highest-Rated Group . | . . . Highest-Rated Ally . | . . . Total Orders . | . . . Ally Attacks . | . . . Total Damage . | . . . Kills . | . . . Allies Corrupted . | . . . Allies Melted . | . . . Intel | -11 -10 -10 ------- Run | Yrd Mat Sub Robot Analysis Total . | . . . Derelict Logs Recovered 1 | . . 1 Drone Launches . | . . . Drone Recoveries . | . . . Exploration | -11 -10 -10 ------------- Run | Yrd Mat Sub Turns Passed 2538 | 245 819 1474 Spaces Moved 1288 | 126 396 766 Core 38 | 38 . . Treads 1229 | 88 396 745 Legs 21 | . . 21 Wheels . | . . . Hover . | . . . Flight . | . . . Fastest Speed 50 | 50 160 120 Average Speed 159 | 162 160 158 Slowest Speed 200 | 200 160 160 Overloaded Moves . | . . . Propulsion Burnouts . | . . . Robots Hopped . | . . . Cave-ins Triggered . | . . . Exploration Rate (%) 31 | 7 50 36 Regions Visited 2 Branch Regions 1 Pre-discovered Areas . | . . . Known Exits Taken . | . . . Unknown Exits Taken 2 | 1 1 . Scrap Searched 4 | . . 4 Spaces Dug . | . . . Terrain Destroyed . | . . . Melee . | . . . Projectile . | . . . AOE . | . . . Terrain Rammed . | . . . Walls Destroyed . | . . . Machines Disabled . | . . . Actions | -11 -10 -10 --------- Run | Yrd Mat Sub Total 1543 | 152 496 895 Wait 93 | 2 37 54 Move 1286 | 125 395 766 Hop . | . . . Pick Up 14 | 4 7 3 Fast Attach 16 | 7 5 4 Attach 6 | 1 1 4 Detach 3 | . 2 1 Swap 8 | . 2 6 Drop 14 | 2 5 7 Fire 102 | 11 41 50 Melee . | . . . Ram . | . . . Kick . | . . . Crush 1 | . 1 . Escape Stasis . | . . . Rewire . | . . . Trap . | . . . Miscellaneous . | . . . Route ------- -11/Scrapyard -10/Materials (discovered 3 exits: Min x2 / *Sub) -10/Subcaves (discovered 1 exit: [*Mat]) History --------- Turn | Location | Event 21 | -11/Scrapyard | Discovered new exit (range 15) 246 | -11/Scrapyard | Entered Materials 300 | -10/Materials | Build established: Mutant 850 | -10/Materials | Identified exit to Mines 1058 | -10/Materials | Discovered new exit (range 4) 1065 | -10/Materials | Entered Subcaves 1129 | -10/Subcaves | Learned Materials non-interactive machine intel 1408 | -10/Subcaves | Visited Clippyterm 1413 | -10/Subcaves | Learned Factory fabricator intel 1413 | -10/Subcaves | Learned Research security intel 1529 | -10/Subcaves | Core integrity fell below 50% 1799 | -10/Subcaves | Shifting Twisted Machinery released Sub. Machine Gun 1844 | -10/Subcaves | Shifting Twisted Machinery released Sub. Power Source 1847 | -10/Subcaves | Shifting Twisted Machinery released Sub. Beam Cannon 1999 | -10/Subcaves | Core integrity fell below 20% 2426 | -10/Subcaves | Discovered new exit (range 13) 2454 | -10/Subcaves | Shifting Twisted Machinery released Sub. Power Source 2538 | -10/Subcaves | Disturbed a concealed Subdweller 2539 | -10/Subcaves | Destroyed by 0J-84N(R) with Subdweller Machine Gun Last Messages --------------- Lgt. Assault Rifle fries itself beyond repair. S-10 Pest destroyed. Acquired 11 matter. Acquired 29 matter. Dropped Lgt. Treads. Acquired 6 matter. Acquired 14 matter. Searching scrap... Found Sub. Machine Gun. Found 35 Matter. Searching scrap... Found Battle Rifle. Found 64 Matter. Searching scrap... Found Shrapnel Trap. Found 46 Matter. Searching scrap... Found Sub. Beam Cannon. Found 54 Matter. 0J-84N(R) angrily emerges from the Twisted Machinery. Map ----- +----------------------------------------------------+ | "" ^"" "#????????????????????????????## #???## | | ^ ^^ ##?????????????????????????????####????### | | #" ##???????????????????????????????????????? | | " ##??????????????????????????????????????? | | #" #??????????????????????????????????????? | | #" " ##??????????????????????????????????????? | | #"" """ #??????????????????????????????????????? | | ## =### #??????????????????????????????????????? | | ?#! ##" #??????????????????????????????????????? | | ?# ! "" ##??????????????????????????????????????? | | ?# "##???????????????????????????????????????? | | ?# &##???????????????????????????????????????? | | ?## ]#???????????????????????????????????????? | | ??##### ######??????????????????????????????????? | | ?????## """##?????????????????????????????????? | | ????## ] """"##????????????????????????????????? | | ????#" "" """""#????????????????????????????????? | | ????#"* """""#?????????????????????????????????? | | #####" "##?????????????????????????????????? | | # " " ##??????????????????????????????????? | | ## " ####" #???????????????????????????????????? | | ?## ###??#" ##??????????????????????????????????? | | ??###?#####" "#??????????????????????????????????? | | ##???## """ ##?????#####???????????????????????? | | #???#"" !" #????##%#%##??????????????????????? | | #???##" ####????#%[[R@#??????????????????????? | | ##???# ""###???????###&<##??????????????????????? | | ##### ["##?????????# &###??????????????????????? | | "##???????### # #??????????????????????? | | "##???#### < " ##?????????????????????? | | "##### # ##????????????????????? | | ## ###" #????????????????????? | | #### ###?#"" * ##????????????????????? | | #?# #???# ""% # #?????????????????????? | | ### #???##= ###### #?????????????????????? | | [ ####????# ##?## #?????????????????????? | | " " #???????# ##??# ???????????????????? | | ######???????# ##??# ?????????????????? | | ##???????????## #??? "????????????????? | | #?????####??## ##??## ????????????????? | | #?##### #??# #???? ????????????????? | | #?# #??# ##????? ""????????????????? | | ### ##?# ### ##??????###?????????????????? | | "" #?# ##?###???????????????????????????? | | "" ### #???????????????????????????????? | | " ## ##??????????????????????????????? | | "" "" #??????????????????????????????? | | """ ???????????????????????? | | #####" ??????????????????????? | | ##???##### # ??????????????????????? | +----------------------------------------------------+ Best States ------------- Heat Dissipation 25 Energy Generation 15 Energy Capacity 250 Matter Stores 300 Matter Capacity 300 Sight Range 16 Terrain Scan Density 10 Armor Coverage 150 Evasion (%) 50 Targeting Accuracy 5 Recoil Reduction 2 Item Schematics ----------------- None Robot Schematics ------------------ None Fabricated ------------ Nothing Alien Tech Used ----------------- None Achievements -------------- None Challenges ------------ None Game ------ Seed SwarmShockRouter Manual? 0 Play Time 00:16:35 Cumulative 45.2 hours Start 2024.10.03 @ 13:50:50 End 2024.10.03 @ 14:06:06 Sessions 1 Manual Loads 0 Difficulty Rogue Special Mode None Game No. 55 Rogue 55 Adventurer 0 Explorer 0 Win Type - Total 0 Types 0/0/0/0/0/0/0/0/0 Lore% 28 Gallery% 40 Achievement% 35 Wizard Run 0 Options --------- Layout 0 ASCII 0 Keyboard 0 Movement Arrows Keybinds 0 Fullscreen 1 Font 18/SmallcapsGlow Map View 76x50 Zoom Use 0% Tactical HUD 0 Map Filters NONE Filters NONE Steam 0 RUN: b7ce23b8-03fd-4434-a5f4-e012d70f8bb5